[Event "Paul Keres Memorial Festival 2022"]
[Site "Pärnu, Estonia Resort Hotel & Spa"]
[Date "2022.07.20"]
[Round "4.1"]
[White "Smirnov, Artem"]
[Black "Kantans, Toms"]
[Result "0-1"]
[TimeControl "60 min for 30 moves + 30 min until game end, from first move every move 30 sec time increment"]
[WhiteTitle "IM"]
[BlackTitle "GM"]
[WhiteFideId "4143256"]
[BlackFideId "11602945"]
[WhiteElo "2419"]
[BlackElo "2486"]

1. d4 {[%clk 01:00:55]} {[%emt 00:00:04]} Nf6 {[%clk 00:57:32]} {[%emt
00:03:28]} 2. c4 {[%clk 01:01:18]} {[%emt 00:00:07]} g6 {[%clk 00:57:34]}
{[%emt 00:00:28]} 3. h4 {[%clk 01:01:40]} {[%emt 00:00:07]} c5 {[%clk
00:55:26]} {[%emt 00:02:39]} 4. d5 {[%clk 01:02:01]} {[%emt 00:00:09]} d6
{[%clk 00:55:51]} {[%emt 00:00:05]} 5. Nc3 {[%clk 01:02:16]} {[%emt 00:00:15]}
Bg7 {[%clk 00:55:40]} {[%emt 00:00:41]} 6. e4 {[%clk 01:02:28]} {[%emt
00:00:19]} e6 {[%clk 00:54:08]} {[%emt 00:02:02]} 7. Be2 {[%clk 00:48:40]}
{[%emt 00:14:18]} O-O {[%clk 00:48:53]} {[%emt 00:05:44]} 8. h5 {[%clk
00:48:36]} {[%emt 00:00:34]} exd5 {[%clk 00:48:49]} {[%emt 00:00:35]} 9. exd5
{[%clk 00:48:58]} {[%emt 00:00:08]} Re8 {[%clk 00:44:35]} {[%emt 00:04:43]} 10.
h6 {[%clk 00:39:48]} {[%emt 00:09:40]} Bh8 {[%clk 00:45:01]} {[%emt 00:00:04]}
11. Bg5 {[%clk 00:35:24]} {[%emt 00:04:54]} a6 {[%clk 00:45:01]} {[%emt
00:00:30]} 12. a4 {[%clk 00:29:18]} {[%emt 00:06:35]} Nbd7 {[%clk 00:39:27]}
{[%emt 00:06:03]} 13. Nf3 {[%clk 00:28:16]} {[%emt 00:01:32]} Ne5 {[%clk
00:36:21]} {[%emt 00:03:37]} 14. Nxe5 {[%clk 00:19:26]} {[%emt 00:09:20]} Rxe5
{[%clk 00:36:48]} {[%emt 00:00:02]} 15. Qd2 {[%clk 00:18:44]} {[%emt 00:01:12]}
Qb6 {[%clk 00:28:38]} {[%emt 00:08:41]} 16. O-O {[%clk 00:17:09]} {[%emt
00:02:04]} Bd7 {[%clk 00:24:16]} {[%emt 00:04:52]} 17. Bf4 {[%clk 00:03:53]}
{[%emt 00:13:46]} Ree8 {[%clk 00:11:43]} {[%emt 00:13:03]} 18. Rfe1 {[%clk
00:03:31]} {[%emt 00:00:52]} Ne4 {[%clk 00:06:36]} {[%emt 00:05:37]} 19. Nxe4
{[%clk 00:03:23]} {[%emt 00:00:38]} Rxe4 {[%clk 00:07:05]} {[%emt 00:00:01]} 20.
Bd3 {[%clk 00:02:05]} {[%emt 00:01:48]} Rxe1+ {[%clk 00:07:30]} {[%emt
00:00:05]} 21. Rxe1 {[%clk 00:02:13]} {[%emt 00:00:21]} Bxa4 {[%clk 00:07:23]}
{[%emt 00:00:38]} 22. Qe3 {[%clk 00:01:01]} {[%emt 00:01:42]} Qxb2 {[%clk
00:03:15]} {[%emt 00:04:38]} 23. Bxd6 {[%clk 00:00:46]} {[%emt 00:00:45]} Bd4
{[%clk 00:03:26]} {[%emt 00:00:19]} 24. Qg3 {[%clk 00:00:36]} {[%emt 00:00:40]}
Re8 {[%clk 00:01:25]} {[%emt 00:02:31]} 25. Rxe8+ {[%clk 00:00:37]} {[%emt
00:00:29]} Bxe8 {[%clk 00:01:54]} {[%emt 00:00:01]} 26. Bf4 {[%clk 00:00:35]}
{[%emt 00:00:32]} Qc3 {[%clk 00:00:57]} {[%emt 00:01:27]} 27. Bg5 {[%clk
00:00:37]} {[%emt 00:00:28]} f6 {[%clk 00:00:54]} {[%emt 00:00:33]} 28. Bf4
{[%clk 00:00:32]} {[%emt 00:00:35]} Qe1+ {[%clk 00:00:45]} {[%emt 00:00:39]} 29.
Bf1 {[%clk 00:00:38]} {[%emt 00:00:24]} Bd7 {[%clk 00:00:40]} {[%emt 00:00:35]}
30. d6 {[%clk 00:30:33]} {[%emt 00:00:35]} Kf7 {[%clk 00:31:01]} {[%emt
00:00:09]} 31. Qh4 {[%clk 00:22:24]} {[%emt 00:08:38]} a5 {[%clk 00:26:03]}
{[%emt 00:05:28]} 32. Bg3 {[%clk 00:22:24]} {[%emt 00:00:30]} a4 {[%clk
00:25:01]} {[%emt 00:01:31]} 33. Qf4 {[%clk 00:22:43]} {[%emt 00:00:12]} a3
{[%clk 00:24:43]} {[%emt 00:00:48]} 34. Qf3 {[%clk 00:23:02]} {[%emt 00:00:11]}
a2 {[%clk 00:23:59]} {[%emt 00:01:14]} 35. Qxb7 {[%clk 00:23:18]} {[%emt
00:00:15]} Qe8 {[%clk 00:24:04]} {[%emt 00:00:24]} 0-1

[Event "Paul Keres Memorial Festival 2022"]
[Site "Pärnu, Estonia Resort Hotel & Spa"]
[Date "2022.07.20"]
[Round "4.2"]
[White "Olde, Margareth"]
[Black "Maiorov, Nikita"]
[Result "0-1"]
[TimeControl "60 min for 30 moves + 30 min until game end, from first move every move 30 sec time increment"]
[WhiteTitle "WIM"]
[BlackTitle "GM"]
[WhiteFideId "4503082"]
[BlackFideId "13501720"]
[WhiteElo "2235"]
[BlackElo "2474"]

1. d4 {[%clk 01:00:58]} {[%emt 00:00:01]} Nf6 {[%clk 01:00:13]} {[%emt
00:00:47]} 2. c4 {[%clk 01:01:22]} {[%emt 00:00:07]} e6 {[%clk 01:00:39]}
{[%emt 00:00:03]} 3. Nf3 {[%clk 01:01:38]} {[%emt 00:00:15]} d5 {[%clk
01:01:01]} {[%emt 00:00:07]} 4. g3 {[%clk 01:02:04]} {[%emt 00:00:04]} Be7
{[%clk 01:00:50]} {[%emt 00:00:41]} 5. Bg2 {[%clk 01:02:26]} {[%emt 00:00:07]}
O-O {[%clk 01:01:14]} {[%emt 00:00:06]} 6. O-O {[%clk 01:02:49]} {[%emt
00:00:08]} c5 {[%clk 01:01:36]} {[%emt 00:00:08]} 7. cxd5 {[%clk 01:01:34]}
{[%emt 00:01:45]} exd5 {[%clk 01:02:01]} {[%emt 00:00:04]} 8. Nc3 {[%clk
01:01:26]} {[%emt 00:00:37]} Nc6 {[%clk 01:02:18]} {[%emt 00:00:13]} 9. Bf4
{[%clk 00:59:34]} {[%emt 00:02:22]} Bg4 {[%clk 00:49:59]} {[%emt 00:12:49]} 10.
dxc5 {[%clk 00:56:05]} {[%emt 00:03:59]} Bxc5 {[%clk 00:46:59]} {[%emt
00:03:30]} 11. Ne5 {[%clk 00:50:33]} {[%emt 00:06:02]} Be6 {[%clk 00:46:59]}
{[%emt 00:00:30]} 12. Rc1 {[%clk 00:49:59]} {[%emt 00:01:05]} Be7 {[%clk
00:38:53]} {[%emt 00:08:36]} 13. Nxc6 {[%clk 00:41:26]} {[%emt 00:09:04]} bxc6
{[%clk 00:39:18]} {[%emt 00:00:04]} 14. Na4 {[%clk 00:41:37]} {[%emt 00:00:19]}
Rc8 {[%clk 00:38:15]} {[%emt 00:01:34]} 15. Nc5 {[%clk 00:39:54]} {[%emt
00:02:12]} Bxc5 {[%clk 00:35:02]} {[%emt 00:03:43]} 16. Rxc5 {[%clk 00:40:19]}
{[%emt 00:00:05]} Qb6 {[%clk 00:35:21]} {[%emt 00:00:11]} 17. Qc1 {[%clk
00:30:29]} {[%emt 00:10:20]} Rfe8 {[%clk 00:32:29]} {[%emt 00:03:22]} 18. Rd1
{[%clk 00:22:01]} {[%emt 00:08:58]} Bg4 {[%clk 00:29:37]} {[%emt 00:03:22]} 19.
Bf3 {[%clk 00:17:15]} {[%emt 00:05:15]} Bxf3 {[%clk 00:28:54]} {[%emt
00:01:13]} 20. exf3 {[%clk 00:17:43]} {[%emt 00:00:03]} h6 {[%clk 00:21:06]}
{[%emt 00:08:18]} 21. Be3 {[%clk 00:17:17]} {[%emt 00:00:56]} Qa6 {[%clk
00:19:23]} {[%emt 00:02:13]} 22. Rc3 {[%clk 00:16:40]} {[%emt 00:01:07]} Nd7
{[%clk 00:16:36]} {[%emt 00:03:17]} 23. f4 {[%clk 00:12:27]} {[%emt 00:04:43]}
Nf6 {[%clk 00:15:15]} {[%emt 00:01:51]} 24. Ra3 {[%clk 00:12:27]} {[%emt
00:00:30]} Qe2 {[%clk 00:15:32]} {[%emt 00:00:13]} 25. Re1 {[%clk 00:08:10]}
{[%emt 00:04:47]} Qh5 {[%clk 00:15:48]} {[%emt 00:00:13]} 26. Bxa7 {[%clk
00:07:23]} {[%emt 00:01:17]} Rxe1+ {[%clk 00:12:54]} {[%emt 00:03:24]} 27. Qxe1
{[%clk 00:07:49]} {[%emt 00:00:04]} c5 {[%clk 00:12:20]} {[%emt 00:01:04]} 28.
Re3 {[%clk 00:05:52]} {[%emt 00:02:27]} Qh3 {[%clk 00:10:21]} {[%emt 00:02:28]}
29. f3 {[%clk 00:03:27]} {[%emt 00:02:57]} Qf5 {[%clk 00:08:13]} {[%emt
00:02:37]} 30. Qc1 {[%clk 00:30:54]} {[%emt 00:03:03]} Nd7 {[%clk 00:32:08]}
{[%emt 00:06:34]} 31. Re7 {[%clk 00:16:03]} {[%emt 00:15:22]} d4 {[%clk
00:25:10]} {[%emt 00:07:28]} 32. Qc4 {[%clk 00:16:02]} {[%emt 00:00:32]} Nf8
{[%clk 00:24:38]} {[%emt 00:01:02]} 33. Re4 {[%clk 00:13:45]} {[%emt 00:02:47]}
h5 {[%clk 00:16:16]} {[%emt 00:08:52]} 34. Kg2 {[%clk 00:11:21]} {[%emt
00:02:55]} Nh7 {[%clk 00:07:02]} {[%emt 00:09:44]} 35. Re5 {[%clk 00:10:06]}
{[%emt 00:01:45]} Qb1 {[%clk 00:07:18]} {[%emt 00:00:14]} 36. Bxc5 {[%clk
00:05:45]} {[%emt 00:04:51]} d3 {[%clk 00:07:32]} {[%emt 00:00:16]} 37. Rd5
{[%clk 00:00:34]} {[%emt 00:05:41]} Qxb2+ {[%clk 00:03:39]} {[%emt 00:04:22]}
38. Kh3 {[%clk 00:00:59]} {[%emt 00:00:05]} Qc2 {[%clk 00:03:54]} {[%emt
00:00:15]} 39. Qd4 {[%clk 00:00:45]} {[%emt 00:00:44]} Nf6 {[%clk 00:04:04]}
{[%emt 00:00:20]} 40. Rd8+ {[%clk 00:00:43]} {[%emt 00:00:32]} Rxd8 {[%clk
00:04:31]} {[%emt 00:00:03]} 41. Qxd8+ {[%clk 00:01:09]} {[%emt 00:00:04]} Kh7
{[%clk 00:04:54]} {[%emt 00:00:06]} 42. Bb4 {[%clk 00:00:53]} {[%emt 00:00:47]}
Qe2 {[%clk 00:05:14]} {[%emt 00:00:10]} 43. Qc8 {[%clk 00:00:31]} {[%emt
00:00:53]} Qf1+ {[%clk 00:03:54]} {[%emt 00:01:49]} 44. Kh4 {[%clk 00:00:53]}
{[%emt 00:00:08]} Qxf3 {[%clk 00:04:13]} {[%emt 00:00:10]} 45. Bc3 {[%clk
00:00:31]} {[%emt 00:00:53]} Qd5 {[%clk 00:01:55]} {[%emt 00:02:47]} 46. Bd2
{[%clk 00:00:32]} {[%emt 00:00:31]} Ne4 {[%clk 00:02:08]} {[%emt 00:00:16]} 47.
Qc1 {[%clk 00:00:33]} {[%emt 00:00:29]} Qf5 {[%clk 00:01:40]} {[%emt 00:00:57]}
48. h3 {[%clk 00:00:39]} {[%emt 00:00:25]} Qf6+ {[%clk 00:01:45]} {[%emt
00:00:24]} 49. Kxh5 {[%clk 00:01:05]} {[%emt 00:00:05]} Qg6+ {[%clk 00:02:10]}
{[%emt 00:00:03]} 0-1

[Event "Paul Keres Memorial Festival 2022"]
[Site "Pärnu, Estonia Resort Hotel & Spa"]
[Date "2022.07.20"]
[Round "4.3"]
[White "Sulskis, Sarunas"]
[Black "Chukavin, Kirill"]
[Result "1-0"]
[TimeControl "60 min for 30 moves + 30 min until game end, from first move every move 30 sec time increment"]
[WhiteTitle "GM"]
[BlackTitle "FM"]
[WhiteFideId "12800112"]
[BlackFideId "4503023"]
[WhiteElo "2481"]
[BlackElo "2418"]

1. e4 {[%clk 01:00:53]} {[%emt 00:00:05]} c5 {[%clk 00:56:47]} {[%emt
00:04:13]} 2. Nf3 {[%clk 01:01:12]} {[%emt 00:00:12]} a6 {[%clk 00:54:36]}
{[%emt 00:02:41]} 3. c3 {[%clk 00:59:26]} {[%emt 00:02:15]} d5 {[%clk
00:52:14]} {[%emt 00:02:52]} 4. exd5 {[%clk 00:58:36]} {[%emt 00:01:20]} Qxd5
{[%clk 00:52:37]} {[%emt 00:00:06]} 5. d4 {[%clk 00:58:58]} {[%emt 00:00:08]}
Nf6 {[%clk 00:52:11]} {[%emt 00:00:57]} 6. Be2 {[%clk 00:45:36]} {[%emt
00:13:52]} e6 {[%clk 00:49:16]} {[%emt 00:03:24]} 7. O-O {[%clk 00:44:26]}
{[%emt 00:01:41]} Nc6 {[%clk 00:47:47]} {[%emt 00:02:00]} 8. Na3 {[%clk
00:40:12]} {[%emt 00:04:44]} cxd4 {[%clk 00:44:46]} {[%emt 00:03:30]} 9. cxd4
{[%clk 00:35:25]} {[%emt 00:05:17]} b5 {[%clk 00:42:01]} {[%emt 00:03:15]} 10.
Nc2 {[%clk 00:35:10]} {[%emt 00:00:45]} Bb7 {[%clk 00:36:21]} {[%emt 00:06:10]}
11. a4 {[%clk 00:31:30]} {[%emt 00:04:10]} b4 {[%clk 00:29:33]} {[%emt
00:07:18]} 12. Bf4 {[%clk 00:22:55]} {[%emt 00:09:05]} Be7 {[%clk 00:28:30]}
{[%emt 00:01:33]} 13. Ne3 {[%clk 00:21:03]} {[%emt 00:02:22]} Qd8 {[%clk
00:28:24]} {[%emt 00:00:36]} 14. a5 {[%clk 00:16:44]} {[%emt 00:04:50]} Nd5
{[%clk 00:25:45]} {[%emt 00:03:08]} 15. Bg3 {[%clk 00:16:52]} {[%emt 00:00:22]}
Nxe3 {[%clk 00:23:24]} {[%emt 00:02:52]} 16. fxe3 {[%clk 00:17:14]} {[%emt
00:00:08]} O-O {[%clk 00:23:36]} {[%emt 00:00:17]} 17. Bd3 {[%clk 00:15:08]}
{[%emt 00:02:36]} g6 {[%clk 00:21:28]} {[%emt 00:02:37]} 18. Ne5 {[%clk
00:12:34]} {[%emt 00:03:04]} Nxe5 {[%clk 00:17:13]} {[%emt 00:04:46]} 19. Bxe5
{[%clk 00:12:52]} {[%emt 00:00:12]} Bd6 {[%clk 00:16:39]} {[%emt 00:01:04]} 20.
Bf6 {[%clk 00:10:55]} {[%emt 00:02:27]} Be7 {[%clk 00:14:35]} {[%emt 00:02:34]}
21. Be5 {[%clk 00:11:19]} {[%emt 00:00:06]} Bd6 {[%clk 00:06:49]} {[%emt
00:08:16]} 22. Bf6 {[%clk 00:10:54]} {[%emt 00:00:55]} Be7 {[%clk 00:07:00]}
{[%emt 00:00:19]} 23. Bxe7 {[%clk 00:10:18]} {[%emt 00:01:06]} Qxe7 {[%clk
00:07:25]} {[%emt 00:00:05]} 24. Qg4 {[%clk 00:10:31]} {[%emt 00:00:17]} Rac8
{[%clk 00:05:31]} {[%emt 00:02:24]} 25. Qf4 {[%clk 00:09:32]} {[%emt 00:01:29]}
Qc7 {[%clk 00:04:12]} {[%emt 00:01:49]} 26. Qxc7 {[%clk 00:07:45]} {[%emt
00:02:17]} Rxc7 {[%clk 00:04:36]} {[%emt 00:00:07]} 27. Ra4 {[%clk 00:06:46]}
{[%emt 00:01:29]} b3 {[%clk 00:03:25]} {[%emt 00:01:41]} 28. Rb4 {[%clk
00:07:02]} {[%emt 00:00:14]} Bd5 {[%clk 00:01:57]} {[%emt 00:01:59]} 29. e4
{[%clk 00:06:53]} {[%emt 00:00:39]} Rb7 {[%clk 00:01:44]} {[%emt 00:00:43]} 30.
Rb6 {[%clk 00:33:59]} {[%emt 00:03:24]} Rxb6 {[%clk 00:31:11]} {[%emt
00:01:03]} 31. axb6 {[%clk 00:33:53]} {[%emt 00:00:36]} Bb7 {[%clk 00:18:37]}
{[%emt 00:13:03]} 32. Rc1 {[%clk 00:33:34]} {[%emt 00:00:50]} f5 {[%clk
00:12:43]} {[%emt 00:06:24]} 33. Rc7 {[%clk 00:28:50]} {[%emt 00:05:13]} Rf7
{[%clk 00:08:47]} {[%emt 00:04:26]} 34. Bc4 {[%clk 00:26:00]} {[%emt 00:03:20]}
Rxc7 {[%clk 00:07:31]} {[%emt 00:01:46]} 35. bxc7 {[%clk 00:26:16]} {[%emt
00:00:14]} Kf7 {[%clk 00:07:16]} {[%emt 00:00:45]} 36. exf5 {[%clk 00:20:22]}
{[%emt 00:06:24]} gxf5 {[%clk 00:07:40]} {[%emt 00:00:06]} 37. d5 {[%clk
00:20:35]} {[%emt 00:00:17]} Ke7 {[%clk 00:06:08]} {[%emt 00:02:02]} 38. dxe6
{[%clk 00:20:55]} {[%emt 00:00:10]} Kd6 {[%clk 00:05:20]} {[%emt 00:01:18]} 39.
Bd5 {[%clk 00:20:48]} {[%emt 00:00:37]} Bc8 {[%clk 00:05:25]} {[%emt 00:00:25]}
40. Bxb3 {[%clk 00:21:01]} {[%emt 00:00:17]} a5 {[%clk 00:02:20]} {[%emt
00:03:35]} 41. Kf2 {[%clk 00:19:38]} {[%emt 00:01:53]} Bb7 {[%clk 00:02:05]}
{[%emt 00:00:45]} 42. Ke3 {[%clk 00:17:30]} {[%emt 00:02:38]} Kxc7 {[%clk
00:02:04]} {[%emt 00:00:32]} 43. Kf4 {[%clk 00:17:31]} {[%emt 00:00:28]} Kd6
{[%clk 00:00:55]} {[%emt 00:01:40]} 44. Kxf5 {[%clk 00:17:48]} {[%emt
00:00:13]} Kd5 {[%emt 00:00:47]} 45. Ke4+ 1-0

[Event "Paul Keres Memorial Festival 2022"]
[Site "Pärnu, Estonia Resort Hotel & Spa"]
[Date "2022.07.20"]
[Round "4.4"]
[White "Golubovskis, Maksims"]
[Black "Andrijashkin, Deniss"]
[Result "0-1"]
[TimeControl "60 min for 30 moves + 30 min until game end, from first move every move 30 sec time increment"]
[WhiteTitle "FM"]
[WhiteFideId "11608528"]
[BlackFideId "4504631"]
[WhiteElo "2219"]
[BlackElo "2006"]

1. e4 {[%clk 00:57:48]} {[%emt 00:03:11]} e5 {[%clk 01:00:23]} {[%emt
00:00:31]} 2. Nf3 {[%clk 00:57:46]} {[%emt 00:00:37]} Nc6 {[%clk 01:00:47]}
{[%emt 00:00:07]} 3. Bb5 {[%clk 00:58:13]} {[%emt 00:00:03]} Nge7 {[%clk
01:00:50]} {[%emt 00:00:27]} 4. c3 {[%clk 00:58:36]} {[%emt 00:00:06]} d6
{[%clk 01:00:35]} {[%emt 00:00:45]} 5. d4 {[%clk 00:59:01]} {[%emt 00:00:05]}
Bd7 {[%clk 01:00:57]} {[%emt 00:00:07]} 6. d5 {[%clk 00:58:50]} {[%emt
00:00:41]} Nb8 {[%clk 01:01:10]} {[%emt 00:00:18]} 7. Bd3 {[%clk 00:59:08]}
{[%emt 00:00:13]} g6 {[%clk 00:57:36]} {[%emt 00:04:03]} 8. c4 {[%clk
00:59:21]} {[%emt 00:00:17]} Bg7 {[%clk 00:56:31]} {[%emt 00:01:34]} 9. O-O
{[%clk 00:58:52]} {[%emt 00:00:58]} a5 {[%clk 00:50:49]} {[%emt 00:06:14]} 10.
Nc3 {[%clk 00:58:38]} {[%emt 00:00:44]} O-O {[%clk 00:47:17]} {[%emt 00:04:03]}
11. Rb1 {[%clk 00:58:08]} {[%emt 00:01:00]} h6 {[%clk 00:44:18]} {[%emt
00:03:28]} 12. b3 {[%clk 00:46:39]} {[%emt 00:12:00]} f5 {[%clk 00:39:41]}
{[%emt 00:05:07]} 13. c5 {[%clk 00:39:12]} {[%emt 00:07:58]} Na6 {[%clk
00:32:49]} {[%emt 00:07:22]} 14. cxd6 {[%clk 00:23:03]} {[%emt 00:16:39]} cxd6
{[%clk 00:33:14]} {[%emt 00:00:05]} 15. a3 {[%clk 00:22:34]} {[%emt 00:00:59]}
f4 {[%clk 00:19:55]} {[%emt 00:13:49]} 16. Nd2 {[%clk 00:21:35]} {[%emt
00:01:29]} g5 {[%clk 00:13:49]} {[%emt 00:06:36]} 17. Be2 {[%clk 00:21:53]}
{[%emt 00:00:11]} Nc5 {[%clk 00:09:34]} {[%emt 00:04:45]} 18. Nc4 {[%clk
00:21:24]} {[%emt 00:01:00]} Rf6 {[%clk 00:08:36]} {[%emt 00:01:24]} 19. a4
{[%clk 00:14:56]} {[%emt 00:07:02]} Bf8 {[%clk 00:02:49]} {[%emt 00:06:16]} 20.
Ba3 {[%clk 00:14:41]} {[%emt 00:00:44]} b6 {[%clk 00:03:06]} {[%emt 00:00:14]}
21. Bg4 {[%clk 00:14:33]} {[%emt 00:00:37]} Be8 {[%clk 00:02:54]} {[%emt
00:00:42]} 22. b4 {[%clk 00:13:31]} {[%emt 00:01:33]} axb4 {[%clk 00:01:45]}
{[%emt 00:01:39]} 23. Rxb4 {[%clk 00:14:00]} Ra6 {[%clk 00:01:31]} {[%emt
00:00:41]} 24. Qb1 {[%clk 00:09:46]} {[%emt 00:04:47]} h5 {[%clk 00:01:33]}
{[%emt 00:00:28]} 25. Bd1 {[%clk 00:10:09]} {[%emt 00:00:08]} Nc8 {[%clk
00:01:45]} {[%emt 00:00:17]} 26. Rb2 {[%clk 00:04:50]} {[%emt 00:05:49]} Nxa4
{[%clk 00:00:33]} {[%emt 00:01:43]} 27. Nxa4 {[%clk 00:04:30]} {[%emt
00:00:50]} Bxa4 {[%clk 00:00:58]} {[%emt 00:00:05]} 28. Bxh5 {[%clk 00:04:36]}
{[%emt 00:00:24]} Bd7 {[%clk 00:00:59]} {[%emt 00:00:25]} 29. Rb3 {[%clk
00:03:00]} {[%emt 00:02:09]} b5 {[%clk 00:00:32]} {[%emt 00:00:57]} 30. Rxb5
{[%clk 00:31:41]} {[%emt 00:01:49]} Rh6 {[%clk 00:30:32]} {[%emt 00:00:30]} 31.
Bd1 {[%clk 00:23:47]} {[%emt 00:08:23]} g4 {[%clk 00:20:50]} {[%emt 00:10:12]}
32. Rb3 {[%clk 00:16:44]} {[%emt 00:07:33]} Qh4 {[%clk 00:18:57]} {[%emt
00:02:22]} 33. h3 {[%clk 00:17:10]} {[%emt 00:00:04]} gxh3 {[%clk 00:14:28]}
{[%emt 00:05:01]} 34. g3 {[%clk 00:17:12]} {[%emt 00:00:28]} h2+ {[%clk
00:13:20]} {[%emt 00:01:38]} 35. Kh1 {[%clk 00:17:40]} Qf6 {[%clk 00:09:25]}
{[%emt 00:04:22]} 36. gxf4 {[%clk 00:13:38]} {[%emt 00:04:35]} exf4 {[%clk
00:06:04]} {[%emt 00:03:52]} 37. Bb2 {[%clk 00:08:06]} {[%emt 00:06:03]} Qg5
{[%clk 00:06:11]} {[%emt 00:00:14]} 38. Qc1 {[%clk 00:07:03]} {[%emt 00:01:41]}
Rg6 {[%clk 00:05:57]} {[%emt 00:00:43]} 39. Bf3 {[%clk 00:06:40]} {[%emt
00:00:54]} Bh3 {[%clk 00:06:05]} {[%emt 00:00:21]} 0-1

[Event "Paul Keres Memorial Festival 2022"]
[Site "Pärnu, Estonia Resort Hotel & Spa"]
[Date "2022.07.20"]
[Round "4.5"]
[White "Medar, Marti"]
[Black "Poltan, Jüri"]
[Result "1-0"]
[TimeControl "60 min for 30 moves + 30 min until game end, from first move every move 30 sec time increment"]
[WhiteFideId "4501870"]
[BlackFideId "4513813"]
[WhiteElo "2066"]
[BlackElo "1613"]

1. d4 {[%clk 01:00:56]} {[%emt 00:00:03]} d5 {[%clk 01:00:29]} {[%emt
00:00:31]} 2. Bf4 {[%clk 01:01:19]} {[%emt 00:00:07]} Nf6 {[%clk 00:59:02]}
{[%emt 00:01:57]} 3. Nc3 {[%clk 01:01:35]} {[%emt 00:00:15]} c6 {[%clk
00:54:13]} {[%emt 00:05:19]} 4. f3 {[%clk 00:59:44]} {[%emt 00:02:21]} Bf5
{[%clk 00:50:52]} {[%emt 00:03:51]} 5. g4 {[%clk 00:59:53]} {[%emt 00:00:20]}
Bg6 {[%clk 00:50:32]} {[%emt 00:00:50]} 6. h4 {[%clk 01:00:20]} {[%emt
00:00:02]} h5 {[%clk 00:48:01]} {[%emt 00:03:01]} 7. g5 {[%clk 01:00:39]}
{[%emt 00:00:11]} Nfd7 {[%clk 00:46:42]} {[%emt 00:01:49]} 8. e4 {[%clk
00:56:07]} {[%emt 00:05:02]} dxe4 {[%clk 00:46:31]} {[%emt 00:00:41]} 9. fxe4
{[%clk 00:55:50]} {[%emt 00:00:47]} e5 {[%clk 00:44:16]} {[%emt 00:02:45]} 10.
dxe5 {[%clk 00:55:50]} {[%emt 00:00:30]} Bb4 {[%clk 00:44:23]} {[%emt
00:00:22]} 11. Qd4 {[%clk 00:49:33]} {[%emt 00:06:49]} Qb6 {[%clk 00:42:05]}
{[%emt 00:02:47]} 12. Nf3 {[%clk 00:41:01]} {[%emt 00:09:02]} Nc5 {[%clk
00:28:08]} {[%emt 00:14:27]} 13. a3 {[%clk 00:22:45]} {[%emt 00:18:47]} Bxc3+
{[%clk 00:20:48]} {[%emt 00:07:49]} 14. Qxc3 {[%clk 00:22:34]} {[%emt
00:00:41]} Nxe4 {[%clk 00:15:42]} {[%emt 00:05:37]} 15. Qd4 {[%clk 00:23:02]}
{[%emt 00:00:02]} Qxd4 {[%clk 00:10:34]} {[%emt 00:05:38]} 16. Nxd4 {[%clk
00:23:30]} {[%emt 00:00:02]} Nc5 {[%clk 00:10:28]} {[%emt 00:00:35]} 17. Bh3
{[%clk 00:22:49]} {[%emt 00:01:12]} Be4 {[%clk 00:08:08]} {[%emt 00:02:50]} 18.
O-O {[%clk 00:23:03]} {[%emt 00:00:16]} Bd5 {[%clk 00:04:31]} {[%emt 00:04:07]}
19. Nf5 {[%clk 00:22:31]} {[%emt 00:01:02]} O-O {[%clk 00:02:54]} {[%emt
00:02:08]} 20. Ne7+ {[%clk 00:17:20]} {[%emt 00:05:40]} Kh8 {[%clk 00:03:05]}
{[%emt 00:00:19]} 21. Be3 {[%clk 00:16:51]} {[%emt 00:00:59]} Nba6 {[%clk
00:02:44]} {[%emt 00:00:51]} 22. g6 {[%clk 00:11:51]} {[%emt 00:05:30]} Rae8
{[%clk 00:02:09]} {[%emt 00:01:05]} 23. Nxd5 {[%clk 00:11:58]} {[%emt
00:00:23]} cxd5 {[%clk 00:02:37]} {[%emt 00:00:02]} 24. Rxf7 {[%clk 00:11:32]}
{[%emt 00:00:56]} Rg8 {[%clk 00:00:44]} {[%emt 00:02:22]} 25. Rf5 {[%clk
00:09:21]} {[%emt 00:02:40]} Nb3 {[%emt 00:00:47]} 1-0